[Event "Titled Tuesday Blitz March 14 Late 2023"]
[White "Riff, Vincent"]
[Black "Liu, Casper"]
[WhiteFideId "617776"]
[BlackFideId "1454153"]
[WhiteElo "2369"]
[BlackElo "2221"]
[Result "0-1"]
[Round "07"]
[TimeControl "180+2"]
[Date "2023.03.14"]
[WhiteClock "0:00:18"]
[BlackClock "0:00:55"]

1. e4 {[%clk 0:03:00]}  c5 {[%clk 0:02:58]} 2. Nc3 {[%clk 0:02:59]}  a6 {[%clk 0:02:56]} 3. Nf3 {[%clk 0:02:55]}  e6 {[%clk 0:02:56]} 4. d4 {[%clk 0:02:53]}  cxd4 {[%clk 0:02:56]} 5. Nxd4 {[%clk 0:02:54]}  Bc5 {[%clk 0:02:57]} 6. Nb3 {[%clk 0:02:53]}  Ba7 {[%clk 0:02:58]} 7. Bd3 {[%clk 0:02:52]}  Nc6 {[%clk 0:02:58]} 8. O-O {[%clk 0:02:48]}  Nge7 {[%clk 0:02:59]} 9. Qe2 {[%clk 0:02:44]}  Ng6 {[%clk 0:02:59]} 10. Be3 {[%clk 0:02:44]}  O-O {[%clk 0:02:43]} 11. Bxa7 {[%clk 0:02:41]}  Rxa7 {[%clk 0:02:44]} 12. f4 {[%clk 0:02:40]}  d5 {[%clk 0:02:44]} 13. f5 {[%clk 0:02:37]}  exf5 {[%clk 0:02:43]} 14. exf5 {[%clk 0:02:37]}  Re8 {[%clk 0:02:44]} 15. Qf2 {[%clk 0:02:36]}  Nge5 {[%clk 0:02:41]} 16. f6 {[%clk 0:02:35]}  Ng4 {[%clk 0:02:30]} 17. Qh4 {[%clk 0:02:24]}  Nxf6 {[%clk 0:02:30]} 18. Rxf6 {[%clk 0:02:18]}  gxf6 {[%clk 0:02:29]} 19. Qxh7+ {[%clk 0:01:56]}  Kf8 {[%clk 0:02:25]} 20. Qh6+ {[%clk 0:01:35]}  Ke7 {[%clk 0:02:25]} 21. Nc5 {[%clk 0:01:31]}  Qb6 {[%clk 0:02:24]} 22. Na4 {[%clk 0:01:29]}  Qb4 {[%clk 0:02:21]} 23. Re1+ {[%clk 0:01:24]}  Ne5 {[%clk 0:02:19]} 24. c3 {[%clk 0:01:00]}  Qg4 {[%clk 0:02:19]} 25. Nb6 {[%clk 0:00:51]}  Be6 {[%clk 0:02:00]} 26. Kh1 {[%clk 0:00:44]}  Rg8 {[%clk 0:01:55]} 27. Bf1 {[%clk 0:00:41]}  Rg5 {[%clk 0:01:30]} 28. Nxe6 {[%clk 0:00:26]}  fxe6 {[%clk 0:01:19]} 29. Nc8+ {[%clk 0:00:23]}  Kf7 {[%clk 0:01:14]} 30. Nxa7 {[%clk 0:00:24]}  Nf3 {[%clk 0:01:09]} 31. Re3 {[%clk 0:00:20]}  Rh5 {[%clk 0:01:02]} 32. Qxh5+ {[%clk 0:00:20]}  Qxh5 {[%clk 0:01:02]} 33. Rxf3 {[%clk 0:00:21]}  Qe5 {[%clk 0:00:58]} 34. Nc8 {[%clk 0:00:20]}  Qc7 {[%clk 0:00:58]} 35. Na7 {[%clk 0:00:19]}  Qb8 {[%clk 0:00:56]} 36. Nb5 {[%clk 0:00:19]}  axb5 {[%clk 0:00:56]} 37. Bxb5 {[%clk 0:00:20]}  Qa7 {[%clk 0:00:55]} 38. a4 {[%clk 0:00:19]}  e5 {[%clk 0:00:54]} 39. h3 {[%clk 0:00:19]}  e4 {[%clk 0:00:55]} 40. Rf2 {[%clk 0:00:19]}  Qxf2 {[%clk 0:00:55]} 41. Kh2 {[%clk 0:00:18]}  e3 {[%clk 0:00:55]} 0-1


[Site "https://www.chess.com"]

[Event "Titled Tuesday Blitz March 14 Late 2023"]
[White "Estrada Nieto, Julian"]
[Black "Leonte, Sebastian-Marian"]
[WhiteFideId "5101018"]
[BlackFideId "1268767"]
[WhiteElo "2176"]
[BlackElo "2351"]
[Result "1-0"]
[Round "07"]
[TimeControl "180+2"]
[Date "2023.03.14"]
[WhiteClock "0:00:08"]
[BlackClock "0:00:01"]

1. e4 {[%clk 0:03:00]}  e5 {[%clk 0:02:59]} 2. Nf3 {[%clk 0:03:00]}  Nc6 {[%clk 0:02:59]} 3. Bb5 {[%clk 0:03:00]}  a6 {[%clk 0:03:00]} 4. Ba4 {[%clk 0:03:00]}  Nf6 {[%clk 0:03:00]} 5. O-O {[%clk 0:02:59]}  b5 {[%clk 0:02:59]} 6. Bb3 {[%clk 0:02:58]}  Bb7 {[%clk 0:03:00]} 7. d3 {[%clk 0:02:52]}  Be7 {[%clk 0:02:59]} 8. Nc3 {[%clk 0:02:48]}  O-O {[%clk 0:02:56]} 9. a4 {[%clk 0:02:47]}  Na5 {[%clk 0:02:47]} 10. Ba2 {[%clk 0:02:46]}  b4 {[%clk 0:02:47]} 11. Ne2 {[%clk 0:02:45]}  d5 {[%clk 0:02:42]} 12. exd5 {[%clk 0:02:38]}  b3 {[%clk 0:02:41]} 13. cxb3 {[%clk 0:02:33]}  Nxd5 {[%clk 0:02:39]} 14. Nxe5 {[%clk 0:02:07]}  Nb4 {[%clk 0:02:32]} 15. d4 {[%clk 0:01:45]}  c5 {[%clk 0:01:19]} 16. Bd2 {[%clk 0:01:14]}  Qd5 {[%clk 0:01:02]} 17. Nf3 {[%clk 0:01:05]}  cxd4 {[%clk 0:00:44]} 18. Nexd4 {[%clk 0:00:53]}  Nxa2 {[%clk 0:00:35]} 19. Bxa5 {[%clk 0:00:44]}  Qxa5 {[%clk 0:00:31]} 20. Rxa2 {[%clk 0:00:44]}  Bf6 {[%clk 0:00:28]} 21. Qe1 {[%clk 0:00:28]}  Qd5 {[%clk 0:00:23]} 22. Qb4 {[%clk 0:00:22]}  Rab8 {[%clk 0:00:20]} 23. Ne2 {[%clk 0:00:15]}  Rfe8 {[%clk 0:00:15]} 24. Ng3 {[%clk 0:00:13]}  Ba8 {[%clk 0:00:12]} 25. Qc4 {[%clk 0:00:13]}  Rxb3 {[%clk 0:00:09]} 26. Qxd5 {[%clk 0:00:10]}  Bxd5 {[%clk 0:00:10]} 27. Raa1 {[%clk 0:00:10]}  Bxf3 {[%clk 0:00:10]} 28. gxf3 {[%clk 0:00:09]}  Rxb2 {[%clk 0:00:09]} 29. Rad1 {[%clk 0:00:09]}  Reb8 {[%clk 0:00:09]} 30. Ne4 {[%clk 0:00:09]}  Be5 {[%clk 0:00:08]} 31. Rd5 {[%clk 0:00:09]}  f6 {[%clk 0:00:08]} 32. Rfd1 {[%clk 0:00:09]}  Ra2 {[%clk 0:00:07]} 33. Rd8+ {[%clk 0:00:10]}  Rxd8 {[%clk 0:00:06]} 34. Rxd8+ {[%clk 0:00:10]}  Kf7 {[%clk 0:00:07]} 35. Rd7+ {[%clk 0:00:10]}  Kg6 {[%clk 0:00:07]} 36. Nc5 {[%clk 0:00:09]}  a5 {[%clk 0:00:06]} 37. Kg2 {[%clk 0:00:08]}  Bc3 {[%clk 0:00:06]} 38. Ne6 {[%clk 0:00:07]}  Rxa4 {[%clk 0:00:04]} 39. Rxg7+ {[%clk 0:00:06]}  Kf5 {[%clk 0:00:04]} 40. Nf8 {[%clk 0:00:05]}  Be5 {[%clk 0:00:03]} 41. Nxh7 {[%clk 0:00:05]}  Ra1 {[%clk 0:00:02]} 42. Ra7 {[%clk 0:00:05]}  a4 {[%clk 0:00:02]} 43. Nf8 {[%clk 0:00:06]}  a3 {[%clk 0:00:02]} 44. Nd7 {[%clk 0:00:06]}  a2 {[%clk 0:00:02]} 45. Nxe5 {[%clk 0:00:06]}  fxe5 {[%clk 0:00:01]} 46. h4 {[%clk 0:00:07]}  Kf4 {[%clk 0:00:02]} 47. Ra4+ {[%clk 0:00:06]}  Kf5 {[%clk 0:00:01]} 48. h5 {[%clk 0:00:06]}  Kg5 {[%clk 0:00:02]} 49. Ra5 {[%clk 0:00:05]}  Kxh5 {[%clk 0:00:02]} 50. Rxe5+ {[%clk 0:00:05]}  Kg6 {[%clk 0:00:02]} 51. Ra5 {[%clk 0:00:05]}  Kf6 {[%clk 0:00:03]} 52. f4 {[%clk 0:00:06]}  Kg6 {[%clk 0:00:03]} 53. Kf3 {[%clk 0:00:06]}  Kf6 {[%clk 0:00:04]} 54. f5 {[%clk 0:00:07]}  Kf7 {[%clk 0:00:03]} 55. Kf4 {[%clk 0:00:07]}  Kf6 {[%clk 0:00:04]} 56. Ra6+ {[%clk 0:00:07]}  Kf7 {[%clk 0:00:03]} 57. f3 {[%clk 0:00:07]}  Kg7 {[%clk 0:00:01]} 58. f6+ {[%clk 0:00:08]}  Kf7 {[%clk 0:00:01]} 59. Kf5 {[%clk 0:00:08]}  Rf1 {[%clk 0:00:01]} 60. Ra7+ {[%clk 0:00:08]} 1-0


[Site "https://www.chess.com"]

[Event "Titled Tuesday Blitz March 14 Late 2023"]
[White "Roebers, Eline"]
[Black "Kalajzic, Ivan"]
[WhiteFideId "1058401"]
[BlackFideId "14506378"]
[WhiteElo "2539"]
[BlackElo "2203"]
[Result "1-0"]
[Round "07"]
[TimeControl "180+2"]
[Date "2023.03.14"]
[WhiteClock "0:00:20"]
[BlackClock "0:00:04"]

1. e4 {[%clk 0:02:59]}  Nc6 {[%clk 0:02:59]} 2. Nf3 {[%clk 0:02:57]}  d6 {[%clk 0:02:59]} 3. d4 {[%clk 0:02:56]}  Bg4 {[%clk 0:02:59]} 4. c3 {[%clk 0:02:56]}  Nf6 {[%clk 0:02:59]} 5. Bd3 {[%clk 0:02:54]}  e5 {[%clk 0:02:58]} 6. Be3 {[%clk 0:02:51]}  g6 {[%clk 0:02:57]} 7. Nbd2 {[%clk 0:02:49]}  Bg7 {[%clk 0:02:58]} 8. O-O {[%clk 0:02:48]}  O-O {[%clk 0:02:57]} 9. h3 {[%clk 0:02:46]}  Bd7 {[%clk 0:02:57]} 10. Re1 {[%clk 0:02:43]}  Re8 {[%clk 0:02:56]} 11. d5 {[%clk 0:02:19]}  Ne7 {[%clk 0:02:55]} 12. g4 {[%clk 0:02:20]}  c5 {[%clk 0:02:42]} 13. Nf1 {[%clk 0:02:12]}  b5 {[%clk 0:02:37]} 14. Ng3 {[%clk 0:02:04]}  Kh8 {[%clk 0:02:15]} 15. Nh2 {[%clk 0:01:57]}  Nfg8 {[%clk 0:01:50]} 16. Qf3 {[%clk 0:01:55]}  Rf8 {[%clk 0:01:45]} 17. Kh1 {[%clk 0:01:51]}  c4 {[%clk 0:01:38]} 18. Bc2 {[%clk 0:01:49]}  Qc8 {[%clk 0:01:35]} 19. Rg1 {[%clk 0:01:28]}  a5 {[%clk 0:01:21]} 20. h4 {[%clk 0:01:19]}  f5 {[%clk 0:01:14]} 21. gxf5 {[%clk 0:01:11]}  gxf5 {[%clk 0:01:14]} 22. Nh5 {[%clk 0:01:07]}  fxe4 {[%clk 0:00:58]} 23. Qg2 {[%clk 0:01:02]}  Rf7 {[%clk 0:00:37]} 24. Nxg7 {[%clk 0:01:01]}  Bh3 {[%clk 0:00:37]} 25. Qg5 {[%clk 0:00:57]}  h6 {[%clk 0:00:34]} 26. Qg3 {[%clk 0:00:43]}  Nf6 {[%clk 0:00:24]} 27. Bxh6 {[%clk 0:00:31]}  Nh5 {[%clk 0:00:23]} 28. Nxh5 {[%clk 0:00:30]}  Nf5 {[%clk 0:00:16]} 29. Qxh3 {[%clk 0:00:28]}  Nxh6 {[%clk 0:00:15]} 30. Qxc8+ {[%clk 0:00:27]}  Rxc8 {[%clk 0:00:15]} 31. Bxe4 {[%clk 0:00:27]}  Rxf2 {[%clk 0:00:14]} 32. Rg6 {[%clk 0:00:22]}  Nf5 {[%clk 0:00:11]} 33. Rag1 {[%clk 0:00:20]}  Rf8 {[%clk 0:00:04]} 34. Bxf5 {[%clk 0:00:19]}  R2xf5 {[%clk 0:00:04]} 35. Rh6# {[%clk 0:00:20]} 1-0


[Site "https://www.chess.com"]

[Event "Titled Tuesday Blitz March 14 Late 2023"]
[White "Wang, Alexander J"]
[Black "Kozin, Yuri"]
[WhiteFideId "30955270"]
[BlackFideId "4129920"]
[WhiteElo "2243"]
[BlackElo "2524"]
[Result "1-0"]
[Round "07"]
[TimeControl "180+2"]
[Date "2023.03.14"]
[WhiteClock "0:00:22"]
[BlackClock "0:00:01"]

1. e4 {[%clk 0:02:56]}  c5 {[%clk 0:03:00]} 2. Nf3 {[%clk 0:02:56]}  e6 {[%clk 0:03:00]} 3. d4 {[%clk 0:02:56]}  cxd4 {[%clk 0:03:01]} 4. Nxd4 {[%clk 0:02:57]}  Nf6 {[%clk 0:03:01]} 5. Nc3 {[%clk 0:02:57]}  d6 {[%clk 0:03:02]} 6. g3 {[%clk 0:02:56]}  Be7 {[%clk 0:03:00]} 7. Bg2 {[%clk 0:02:56]}  O-O {[%clk 0:03:01]} 8. O-O {[%clk 0:02:56]}  a6 {[%clk 0:03:01]} 9. a4 {[%clk 0:02:53]}  Qc7 {[%clk 0:03:01]} 10. h3 {[%clk 0:02:52]}  Bd7 {[%clk 0:03:00]} 11. Be3 {[%clk 0:02:52]}  Nc6 {[%clk 0:03:00]} 12. f4 {[%clk 0:02:50]}  Nxd4 {[%clk 0:03:00]} 13. Bxd4 {[%clk 0:02:50]}  Bc6 {[%clk 0:02:58]} 14. g4 {[%clk 0:02:47]}  b5 {[%clk 0:02:55]} 15. axb5 {[%clk 0:02:45]}  axb5 {[%clk 0:02:55]} 16. g5 {[%clk 0:02:41]}  Rxa1 {[%clk 0:02:44]} 17. Qxa1 {[%clk 0:02:35]}  Nd7 {[%clk 0:02:43]} 18. Qa7 {[%clk 0:02:20]}  Qxa7 {[%clk 0:02:36]} 19. Bxa7 {[%clk 0:02:21]}  Ra8 {[%clk 0:02:33]} 20. Be3 {[%clk 0:02:18]}  b4 {[%clk 0:02:29]} 21. Ne2 {[%clk 0:02:17]}  Bb5 {[%clk 0:02:13]} 22. Re1 {[%clk 0:02:12]}  Ra2 {[%clk 0:02:11]} 23. Nd4 {[%clk 0:02:06]}  Ba6 {[%clk 0:01:57]} 24. b3 {[%clk 0:01:57]}  Bb7 {[%clk 0:01:44]} 25. f5 {[%clk 0:01:53]}  e5 {[%clk 0:01:38]} 26. Nb5 {[%clk 0:01:40]}  Rxc2 {[%clk 0:01:22]} 27. Rd1 {[%clk 0:01:33]}  Rc6 {[%clk 0:00:43]} 28. Ra1 {[%clk 0:01:09]}  Ba6 {[%clk 0:00:30]} 29. Nc7 {[%clk 0:01:08]}  Rxc7 {[%clk 0:00:19]} 30. Rxa6 {[%clk 0:01:07]}  Rc3 {[%clk 0:00:13]} 31. Ra8+ {[%clk 0:01:06]}  Nf8 {[%clk 0:00:13]} 32. Kf2 {[%clk 0:00:55]}  Rc2+ {[%clk 0:00:12]} 33. Kf3 {[%clk 0:00:52]}  Rc3 {[%clk 0:00:12]} 34. h4 {[%clk 0:00:51]}  h6 {[%clk 0:00:10]} 35. Re8 {[%clk 0:00:48]}  hxg5 {[%clk 0:00:08]} 36. Rxe7 {[%clk 0:00:46]}  g4+ {[%clk 0:00:08]} 37. Ke2 {[%clk 0:00:45]}  Rxb3 {[%clk 0:00:09]} 38. Rb7 {[%clk 0:00:43]}  Rb2+ {[%clk 0:00:08]} 39. Bd2 {[%clk 0:00:44]}  b3 {[%clk 0:00:08]} 40. Kd3 {[%clk 0:00:43]}  Nh7 {[%clk 0:00:08]} 41. Rb8+ {[%clk 0:00:42]}  Nf8 {[%clk 0:00:08]} 42. Kc3 {[%clk 0:00:40]}  Rb1 {[%clk 0:00:04]} 43. Rxb3 {[%clk 0:00:39]}  Rg1 {[%clk 0:00:04]} 44. Rb8 {[%clk 0:00:33]}  Rxg2 {[%clk 0:00:03]} 45. Kd3 {[%clk 0:00:33]}  g3 {[%clk 0:00:03]} 46. Ke3 {[%clk 0:00:29]}  Rg1 {[%clk 0:00:02]} 47. Bb4 {[%clk 0:00:23]}  Rb1 {[%clk 0:00:02]} 48. Bxd6 {[%clk 0:00:21]}  Rxb8 {[%clk 0:00:02]} 49. Bxb8 {[%clk 0:00:22]}  Nd7 {[%clk 0:00:02]} 50. Bd6 {[%clk 0:00:22]}  Kh7 {[%clk 0:00:02]} 51. Kf3 {[%clk 0:00:22]}  Nf6 {[%clk 0:00:01]} 52. Bxe5 {[%clk 0:00:22]} 1-0


[Site "https://www.chess.com"]

[Event "Titled Tuesday Blitz March 14 Late 2023"]
[White "Fus, Jakub"]
[Black "Lorenzo De La Riva, Lazaro"]
[WhiteFideId "1193023"]
[BlackFideId "2268809"]
[WhiteElo "2335"]
[BlackElo "2294"]
[Result "1-0"]
[Round "07"]
[TimeControl "180+2"]
[Date "2023.03.14"]
[WhiteClock "0:01:23"]
[BlackClock "0:00:07"]

1. e4 {[%clk 0:03:00]}  c5 {[%clk 0:02:57]} 2. Nf3 {[%clk 0:03:01]}  Nc6 {[%clk 0:02:54]} 3. Bb5 {[%clk 0:03:00]}  e5 {[%clk 0:02:52]} 4. O-O {[%clk 0:02:59]}  Bd6 {[%clk 0:02:48]} 5. Nc3 {[%clk 0:02:58]}  a6 {[%clk 0:02:47]} 6. Bc4 {[%clk 0:02:55]}  b5 {[%clk 0:02:43]} 7. Bd5 {[%clk 0:02:55]}  Nf6 {[%clk 0:02:40]} 8. d3 {[%clk 0:02:54]}  h6 {[%clk 0:02:39]} 9. a3 {[%clk 0:02:53]}  Rb8 {[%clk 0:02:31]} 10. Ba2 {[%clk 0:02:50]}  Ne7 {[%clk 0:02:29]} 11. Ne2 {[%clk 0:02:44]}  Bc7 {[%clk 0:02:22]} 12. Ng3 {[%clk 0:02:39]}  d6 {[%clk 0:02:22]} 13. c3 {[%clk 0:02:39]}  O-O {[%clk 0:02:05]} 14. Nh4 {[%clk 0:02:38]}  Re8 {[%clk 0:02:05]} 15. h3 {[%clk 0:02:34]}  Be6 {[%clk 0:02:04]} 16. Qf3 {[%clk 0:02:32]}  Bxa2 {[%clk 0:01:07]} 17. Rxa2 {[%clk 0:02:33]}  Nh7 {[%clk 0:00:58]} 18. Nhf5 {[%clk 0:02:22]}  Nxf5 {[%clk 0:00:57]} 19. Nxf5 {[%clk 0:02:23]}  Qf6 {[%clk 0:00:52]} 20. Qg4 {[%clk 0:02:10]}  Kh8 {[%clk 0:00:51]} 21. Ne3 {[%clk 0:02:08]}  Qe6 {[%clk 0:00:43]} 22. Ra1 {[%clk 0:02:02]}  Qxg4 {[%clk 0:00:42]} 23. hxg4 {[%clk 0:02:03]}  Nf6 {[%clk 0:00:37]} 24. a4 {[%clk 0:02:02]}  b4 {[%clk 0:00:35]} 25. f3 {[%clk 0:02:02]}  bxc3 {[%clk 0:00:31]} 26. bxc3 {[%clk 0:02:03]}  Rb3 {[%clk 0:00:30]} 27. Bd2 {[%clk 0:02:02]}  Reb8 {[%clk 0:00:29]} 28. Kf2 {[%clk 0:02:00]}  Kg8 {[%clk 0:00:29]} 29. Ke2 {[%clk 0:02:00]}  Ba5 {[%clk 0:00:25]} 30. Rfc1 {[%clk 0:01:58]}  R8b7 {[%clk 0:00:19]} 31. Rc2 {[%clk 0:01:55]}  Bc7 {[%clk 0:00:20]} 32. Nd1 {[%clk 0:01:46]}  Rb8 {[%clk 0:00:19]} 33. g5 {[%clk 0:01:46]}  hxg5 {[%clk 0:00:18]} 34. Bxg5 {[%clk 0:01:47]}  Ne8 {[%clk 0:00:14]} 35. Ne3 {[%clk 0:01:47]}  f6 {[%clk 0:00:15]} 36. Bh4 {[%clk 0:01:47]}  Bd8 {[%clk 0:00:16]} 37. Nc4 {[%clk 0:01:45]}  Be7 {[%clk 0:00:15]} 38. Bf2 {[%clk 0:01:39]}  Kf7 {[%clk 0:00:14]} 39. Rd1 {[%clk 0:01:40]}  Ke6 {[%clk 0:00:14]} 40. d4 {[%clk 0:01:39]}  cxd4 {[%clk 0:00:15]} 41. cxd4 {[%clk 0:01:39]}  Kf7 {[%clk 0:00:14]} 42. a5 {[%clk 0:01:36]}  R3b4 {[%clk 0:00:13]} 43. dxe5 {[%clk 0:01:33]}  dxe5 {[%clk 0:00:11]} 44. Bb6 {[%clk 0:01:33]}  g6 {[%clk 0:00:09]} 45. Rd7 {[%clk 0:01:28]}  Rc8 {[%clk 0:00:09]} 46. Nxe5+ {[%clk 0:01:24]}  Ke6 {[%clk 0:00:06]} 47. Rxc8 {[%clk 0:01:24]}  Kxe5 {[%clk 0:00:07]} 48. Rxe7+ {[%clk 0:01:23]} 1-0


[Site "https://www.chess.com"]

[Event "Titled Tuesday Blitz March 14 Late 2023"]
[White "Klose, Eli"]
[Black "Meunier-Pion, Jean"]
[WhiteFideId "16242955"]
[BlackFideId "20685327"]
[WhiteElo "2612"]
[BlackElo "2124"]
[Result "1-0"]
[Round "07"]
[TimeControl "180+2"]
[Date "2023.03.14"]
[WhiteClock "0:00:14"]
[BlackClock "0:00:02"]

1. e4 {[%clk 0:02:57]}  e5 {[%clk 0:02:55]} 2. Nf3 {[%clk 0:02:57]}  Nc6 {[%clk 0:02:55]} 3. d4 {[%clk 0:02:58]}  exd4 {[%clk 0:02:54]} 4. Bc4 {[%clk 0:02:58]}  Nf6 {[%clk 0:02:50]} 5. O-O {[%clk 0:02:57]}  d5 {[%clk 0:02:46]} 6. exd5 {[%clk 0:02:54]}  Nxd5 {[%clk 0:02:47]} 7. Nxd4 {[%clk 0:02:54]}  Nxd4 {[%clk 0:02:43]} 8. Qxd4 {[%clk 0:02:55]}  Be6 {[%clk 0:02:43]} 9. Re1 {[%clk 0:02:54]}  c6 {[%clk 0:02:29]} 10. Bxd5 {[%clk 0:02:49]}  Qxd5 {[%clk 0:02:24]} 11. Qxd5 {[%clk 0:02:49]}  cxd5 {[%clk 0:02:25]} 12. Nc3 {[%clk 0:02:49]}  Be7 {[%clk 0:02:23]} 13. Be3 {[%clk 0:02:40]}  O-O {[%clk 0:02:18]} 14. Bd4 {[%clk 0:02:38]}  Bb4 {[%clk 0:02:13]} 15. Re3 {[%clk 0:02:30]}  Rfd8 {[%clk 0:02:12]} 16. Ne2 {[%clk 0:02:17]}  Bf5 {[%clk 0:02:03]} 17. c3 {[%clk 0:02:17]}  Bd6 {[%clk 0:02:01]} 18. Re1 {[%clk 0:02:13]}  a5 {[%clk 0:01:55]} 19. f3 {[%clk 0:02:14]}  a4 {[%clk 0:01:54]} 20. g4 {[%clk 0:02:08]}  Bg6 {[%clk 0:01:46]} 21. Ng3 {[%clk 0:02:00]}  a3 {[%clk 0:01:43]} 22. b4 {[%clk 0:01:59]}  f6 {[%clk 0:01:35]} 23. Kf2 {[%clk 0:01:56]}  Re8 {[%clk 0:01:22]} 24. Rxe8+ {[%clk 0:01:46]}  Rxe8 {[%clk 0:01:22]} 25. Rxe8+ {[%clk 0:01:43]}  Bxe8 {[%clk 0:01:23]} 26. Nf5 {[%clk 0:01:34]}  Bxh2 {[%clk 0:01:14]} 27. Ne7+ {[%clk 0:01:31]}  Kf7 {[%clk 0:01:15]} 28. Nxd5 {[%clk 0:01:30]}  Ke6 {[%clk 0:01:15]} 29. Ne3 {[%clk 0:01:25]}  g6 {[%clk 0:00:59]} 30. Nc2 {[%clk 0:01:24]}  h5 {[%clk 0:00:52]} 31. gxh5 {[%clk 0:01:22]}  gxh5 {[%clk 0:00:53]} 32. Nxa3 {[%clk 0:01:23]}  h4 {[%clk 0:00:47]} 33. Nc4 {[%clk 0:01:17]}  Bg3+ {[%clk 0:00:43]} 34. Kg2 {[%clk 0:01:17]}  Bb5 {[%clk 0:00:40]} 35. Ne3 {[%clk 0:01:15]}  Be2 {[%clk 0:00:33]} 36. a4 {[%clk 0:01:04]}  f5 {[%clk 0:00:29]} 37. a5 {[%clk 0:00:38]}  Bd3 {[%clk 0:00:28]} 38. Nd1 {[%clk 0:00:35]}  Kd5 {[%clk 0:00:20]} 39. Ne3+ {[%clk 0:00:28]}  Kc6 {[%clk 0:00:17]} 40. c4 {[%clk 0:00:17]}  f4 {[%clk 0:00:14]} 41. b5+ {[%clk 0:00:18]}  Kd7 {[%clk 0:00:14]} 42. Ng4 {[%clk 0:00:17]}  Bxc4 {[%clk 0:00:14]} 43. Ne5+ {[%clk 0:00:17]}  Ke6 {[%clk 0:00:14]} 44. Nxc4 {[%clk 0:00:18]}  Kd5 {[%clk 0:00:14]} 45. a6 {[%clk 0:00:17]}  bxa6 {[%clk 0:00:12]} 46. bxa6 {[%clk 0:00:18]}  Kc6 {[%clk 0:00:06]} 47. a7 {[%clk 0:00:16]}  Kb7 {[%clk 0:00:07]} 48. Nd6+ {[%clk 0:00:11]}  Ka8 {[%clk 0:00:07]} 49. Ne8 {[%clk 0:00:12]}  h3+ {[%clk 0:00:05]} 50. Kxh3 {[%clk 0:00:12]}  Bf2 {[%clk 0:00:02]} 51. Nc7+ {[%clk 0:00:12]}  Kb7 {[%clk 0:00:02]} 52. a8=Q+ {[%clk 0:00:13]}  Kxc7 {[%clk 0:00:02]} 53. Bxf2 {[%clk 0:00:14]} 1-0


[Site "https://www.chess.com"]

[Event "Titled Tuesday Blitz March 14 Late 2023"]
[White "Fernandez, Maria Florencia"]
[Black "Fishbein, Alexander"]
[WhiteFideId "116459"]
[BlackFideId "2000377"]
[WhiteElo "2155"]
[BlackElo "2415"]
[Result "1-0"]
[Round "07"]
[TimeControl "180+2"]
[Date "2023.03.14"]
[WhiteClock "0:00:06"]
[BlackClock "0:00:13"]

1. d4 {[%clk 0:03:00]}  Nf6 {[%clk 0:02:58]} 2. c4 {[%clk 0:02:58]}  a6 {[%clk 0:02:57]} 3. Nc3 {[%clk 0:02:56]}  b5 {[%clk 0:02:57]} 4. cxb5 {[%clk 0:02:55]}  axb5 {[%clk 0:02:57]} 5. Nxb5 {[%clk 0:02:55]}  e5 {[%clk 0:02:58]} 6. e3 {[%clk 0:02:50]}  c6 {[%clk 0:02:50]} 7. Nc3 {[%clk 0:02:49]}  exd4 {[%clk 0:02:48]} 8. exd4 {[%clk 0:02:49]}  Bb4 {[%clk 0:02:48]} 9. Nf3 {[%clk 0:02:48]}  O-O {[%clk 0:02:48]} 10. Be2 {[%clk 0:02:48]}  d5 {[%clk 0:02:46]} 11. O-O {[%clk 0:02:48]}  Ba6 {[%clk 0:02:44]} 12. Bg5 {[%clk 0:02:44]}  h6 {[%clk 0:02:43]} 13. Bh4 {[%clk 0:02:44]}  g5 {[%clk 0:02:42]} 14. Bg3 {[%clk 0:02:35]}  Bxc3 {[%clk 0:02:42]} 15. bxc3 {[%clk 0:02:35]}  Nbd7 {[%clk 0:02:35]} 16. Bxa6 {[%clk 0:02:29]}  Rxa6 {[%clk 0:02:34]} 17. Qd3 {[%clk 0:02:29]}  Qa8 {[%clk 0:02:28]} 18. h4 {[%clk 0:02:25]}  Ne4 {[%clk 0:02:26]} 19. hxg5 {[%clk 0:02:20]}  hxg5 {[%clk 0:02:26]} 20. Nxg5 {[%clk 0:02:11]}  Nxg5 {[%clk 0:02:09]} 21. Qf5 {[%clk 0:02:11]}  Ne6 {[%clk 0:02:09]} 22. Rae1 {[%clk 0:01:49]}  Qc8 {[%clk 0:01:51]} 23. Re3 {[%clk 0:01:03]}  Ng7 {[%clk 0:01:49]} 24. Qg5 {[%clk 0:00:52]}  f6 {[%clk 0:01:46]} 25. Qh6 {[%clk 0:00:47]}  Rf7 {[%clk 0:01:43]} 26. Bd6 {[%clk 0:00:45]}  Nf5 {[%clk 0:01:14]} 27. Qg6+ {[%clk 0:00:44]}  Ng7 {[%clk 0:01:14]} 28. Rh3 {[%clk 0:00:41]}  Nf8 {[%clk 0:01:13]} 29. Qh6 {[%clk 0:00:31]}  Rc7 {[%clk 0:00:50]} 30. Qh8+ {[%clk 0:00:25]}  Kf7 {[%clk 0:00:50]} 31. Bxc7 {[%clk 0:00:15]}  Qxc7 {[%clk 0:00:48]} 32. Re1 {[%clk 0:00:11]}  Ra8 {[%clk 0:00:44]} 33. Rg3 {[%clk 0:00:08]}  Qxg3 {[%clk 0:00:22]} 34. fxg3 {[%clk 0:00:08]}  Rxa2 {[%clk 0:00:20]} 35. Qh3 {[%clk 0:00:07]}  Ra7 {[%clk 0:00:19]} 36. Qc8 {[%clk 0:00:08]}  Re7 {[%clk 0:00:15]} 37. Rxe7+ {[%clk 0:00:05]}  Kxe7 {[%clk 0:00:15]} 38. Qxc6 {[%clk 0:00:06]}  Nf5 {[%clk 0:00:12]} 39. Qxd5 {[%clk 0:00:05]}  Nxg3 {[%clk 0:00:12]} 40. Qc5+ {[%clk 0:00:03]}  Kf7 {[%clk 0:00:12]} 41. Qc7+ {[%clk 0:00:03]}  Kg6 {[%clk 0:00:11]} 42. Qxg3+ {[%clk 0:00:04]}  Kf5 {[%clk 0:00:12]} 43. Qf3+ {[%clk 0:00:04]}  Ke6 {[%clk 0:00:12]} 44. d5+ {[%clk 0:00:05]}  Ke5 {[%clk 0:00:12]} 45. c4 {[%clk 0:00:04]}  Nd7 {[%clk 0:00:12]} 46. Qe3+ {[%clk 0:00:04]}  Kd6 {[%clk 0:00:12]} 47. Qe6+ {[%clk 0:00:04]}  Kc7 {[%clk 0:00:13]} 48. Qc6+ {[%clk 0:00:05]}  Kd8 {[%clk 0:00:13]} 49. d6 {[%clk 0:00:05]}  Ke8 {[%clk 0:00:13]} 50. Qc8+ {[%clk 0:00:05]}  Kf7 {[%clk 0:00:13]} 51. Qxd7+ {[%clk 0:00:06]} 1-0


[Site "https://www.chess.com"]

[Event "Titled Tuesday Blitz March 14 Late 2023"]
[White "Gatterer, Florian"]
[Black "Melian, Juan Sebastian"]
[WhiteFideId "811688"]
[BlackFideId "3706575"]
[WhiteElo "2221"]
[BlackElo "2031"]
[Result "1-0"]
[Round "07"]
[TimeControl "180+2"]
[Date "2023.03.14"]
[WhiteClock "0:01:46"]
[BlackClock "0:01:43"]

1. Nf3 {[%clk 0:03:00]}  g6 {[%clk 0:02:56]} 2. e4 {[%clk 0:02:59]}  Bg7 {[%clk 0:02:57]} 3. d4 {[%clk 0:02:59]}  d6 {[%clk 0:02:51]} 4. c3 {[%clk 0:02:59]}  Nf6 {[%clk 0:02:45]} 5. Bd3 {[%clk 0:02:59]}  O-O {[%clk 0:02:46]} 6. O-O {[%clk 0:02:59]}  Nc6 {[%clk 0:02:44]} 7. Re1 {[%clk 0:02:59]}  Nd7 {[%clk 0:02:43]} 8. a4 {[%clk 0:02:52]}  e5 {[%clk 0:02:41]} 9. Bg5 {[%clk 0:02:43]}  Qe8 {[%clk 0:02:38]} 10. dxe5 {[%clk 0:02:34]}  Ndxe5 {[%clk 0:02:30]} 11. Nxe5 {[%clk 0:02:29]}  Nxe5 {[%clk 0:02:30]} 12. Be2 {[%clk 0:02:27]}  Be6 {[%clk 0:02:26]} 13. Nd2 {[%clk 0:02:21]}  f5 {[%clk 0:02:10]} 14. exf5 {[%clk 0:02:18]}  Rxf5 {[%clk 0:02:11]} 15. Be3 {[%clk 0:02:15]}  Qc6 {[%clk 0:01:55]} 16. Bb5 {[%clk 0:02:03]}  Qd5 {[%clk 0:01:50]} 17. c4 {[%clk 0:01:46]}  Qd3 {[%clk 0:01:43]} 18. Ra3 {[%clk 0:01:46]} 1-0


[Site "https://www.chess.com"]